[Event "Early-Titled-Tuesday-Blitz-March-12-2024"]
[Site "Chess.com"]
[Date "2024.03.12"]
[Round "3"]
[White "Jimonios"]
[Black "Practical-Play"]
[Result "1-0"]
[WhiteElo "2680"]
[BlackElo "2440"]
[TimeControl "180+1"]
[EndTime "8:27:27 PDT"]
[Termination "Jimonios won by resignation"]

1. e4 {[%clk 0:03:00.9]} 1... c5 {[%clk 0:02:53.9]} 2. Nf3 {[%clk 0:03:01]} 2...
a6 {[%clk 0:02:53.5]} 3. a4 {[%clk 0:03:00.2]} 3... d6 {[%clk 0:02:42.3]} 4. Bc4
{[%clk 0:02:59.4]} 4... Nf6 {[%clk 0:02:37]} 5. Nc3 {[%clk 0:02:59.6]} 5... Nc6
{[%clk 0:02:27.6]} 6. O-O {[%clk 0:02:56.4]} 6... Bg4 {[%clk 0:02:26.7]} 7. h3
{[%clk 0:02:54.5]} 7... Bh5 {[%clk 0:02:24]} 8. g4 {[%clk 0:02:53.9]} 8... Bg6
{[%clk 0:02:20.6]} 9. d3 {[%clk 0:02:42.9]} 9... e6 {[%clk 0:02:20.1]} 10. Re1
{[%clk 0:02:34]} 10... Be7 {[%clk 0:02:17.2]} 11. Bf4 {[%clk 0:02:03.8]} 11...
Nd7 {[%clk 0:01:53.4]} 12. Bg3 {[%clk 0:01:47.8]} 12... Nde5 {[%clk 0:01:43.1]}
13. Nxe5 {[%clk 0:01:40.2]} 13... Nxe5 {[%clk 0:01:41.7]} 14. Bb3 {[%clk
0:01:40.4]} 14... h5 {[%clk 0:01:41.1]} 15. f4 {[%clk 0:01:39.4]} 15... hxg4
{[%clk 0:01:31.4]} 16. fxe5 {[%clk 0:01:33.3]} 16... gxh3 {[%clk 0:01:20.5]} 17.
Qg4 {[%clk 0:01:24.2]} 17... dxe5 {[%clk 0:01:12.1]} 18. Bxe5 {[%clk 0:00:46.9]}
18... Bf6 {[%clk 0:00:48.6]} 19. Bxf6 {[%clk 0:00:43]} 19... Qxf6 {[%clk
0:00:49.5]} 20. Rf1 {[%clk 0:00:35.4]} 20... Qd4+ {[%clk 0:00:41.3]} 21. Kh2
{[%clk 0:00:35.6]} 21... Qe5+ {[%clk 0:00:21.5]} 22. Qg3 {[%clk 0:00:32.7]}
22... Qxg3+ {[%clk 0:00:19]} 23. Kxg3 {[%clk 0:00:33.6]} 23... O-O-O {[%clk
0:00:18.2]} 24. Rh1 {[%clk 0:00:33.7]} 24... Rh5 {[%clk 0:00:11.4]} 25. Rxh3
{[%clk 0:00:32.4]} 25... Rdh8 {[%clk 0:00:10.4]} 26. Rah1 {[%clk 0:00:30.9]}
26... Rxh3+ {[%clk 0:00:09.7]} 27. Rxh3 {[%clk 0:00:31]} 27... Rxh3+ {[%clk
0:00:10.6]} 28. Kxh3 {[%clk 0:00:31.9]} 28... Kc7 {[%clk 0:00:10.3]} 29. Kg3
{[%clk 0:00:32.6]} 29... Kd6 {[%clk 0:00:11.2]} 30. Kf4 {[%clk 0:00:33]} 30...
Kc6 {[%clk 0:00:10.2]} 31. Bc4 {[%clk 0:00:32]} 31... b5 {[%clk 0:00:11.1]} 32.
axb5+ {[%clk 0:00:32]} 1-0

[Event "Early-Titled-Tuesday-Blitz-March-12-2024"]
[Site "Chess.com"]
[Date "2024.03.12"]
[Round "3"]
[White "kassablanca"]
[Black "Langusto"]
[Result "1-0"]
[WhiteElo "2775"]
[BlackElo "2512"]
[TimeControl "180+1"]
[EndTime "8:27:28 PDT"]
[Termination "kassablanca won on time"]

1. d4 {[%clk 0:03:00.9]} 1... d5 {[%clk 0:02:59.4]} 2. c4 {[%clk 0:03:00.9]}
2... dxc4 {[%clk 0:03:00]} 3. Nf3 {[%clk 0:03:01]} 3... e5 {[%clk 0:02:41.3]} 4.
Nxe5 {[%clk 0:02:55.1]} 4... b5 {[%clk 0:02:41.6]} 5. e3 {[%clk 0:02:46.6]} 5...
Bb4+ {[%clk 0:02:31.4]} 6. Nc3 {[%clk 0:02:40.8]} 6... Bb7 {[%clk 0:02:25.3]} 7.
a4 {[%clk 0:02:14.7]} 7... a6 {[%clk 0:02:17.8]} 8. Bd2 {[%clk 0:02:08.6]} 8...
Nf6 {[%clk 0:02:00]} 9. axb5 {[%clk 0:02:05.9]} 9... Bxc3 {[%clk 0:02:00.4]} 10.
Bxc3 {[%clk 0:02:04.7]} 10... axb5 {[%clk 0:02:01.1]} 11. Rxa8 {[%clk
0:01:58.8]} 11... Bxa8 {[%clk 0:02:02]} 12. Qa1 {[%clk 0:01:43.2]} 12... Nbd7
{[%clk 0:01:39]} 13. Nxd7 {[%clk 0:01:33.4]} 13... Nxd7 {[%clk 0:01:39.9]} 14.
Qa3 {[%clk 0:01:25.5]} 14... c5 {[%clk 0:01:36.9]} 15. dxc5 {[%clk 0:01:23.5]}
15... O-O {[%clk 0:01:37.4]} 16. Bd4 {[%clk 0:01:17.5]} 16... Qb8 {[%clk
0:01:31.8]} 17. f3 {[%clk 0:01:06.7]} 17... Ne5 {[%clk 0:00:56.1]} 18. Kf2
{[%clk 0:01:00.3]} 18... b4 {[%clk 0:00:49.3]} 19. Qa1 {[%clk 0:00:42.4]} 19...
c3 {[%clk 0:00:44.1]} 20. bxc3 {[%clk 0:00:41.7]} 20... b3 {[%clk 0:00:44.6]}
21. Qb2 {[%clk 0:00:37.5]} 21... Re8 {[%clk 0:00:16.1]} 22. Be2 {[%clk
0:00:35.2]} 22... f6 {[%clk 0:00:10.8]} 23. Rb1 {[%clk 0:00:33]} 23... Bd5
{[%clk 0:00:07.1]} 24. c4 {[%clk 0:00:25.4]} 24... Nxc4 {[%clk 0:00:06.6]} 25.
Qxb3 {[%clk 0:00:23]} 1-0

[Event "Early-Titled-Tuesday-Blitz-March-12-2024"]
[Site "Chess.com"]
[Date "2024.03.12"]
[Round "3"]
[White "koncheto"]
[Black "Tash_Boy"]
[Result "0-1"]
[WhiteElo "2471"]
[BlackElo "2696"]
[TimeControl "180+1"]
[EndTime "8:27:29 PDT"]
[Termination "Tash_Boy won by resignation"]

1. e4 {[%clk 0:03:00.9]} 1... c5 {[%clk 0:02:58.2]} 2. Nf3 {[%clk 0:03:00.7]}
2... d6 {[%clk 0:02:57.8]} 3. d4 {[%clk 0:03:01.3]} 3... cxd4 {[%clk 0:02:58]}
4. Nxd4 {[%clk 0:03:02.2]} 4... Nf6 {[%clk 0:02:58.4]} 5. f3 {[%clk 0:03:02.1]}
5... e5 {[%clk 0:02:54.5]} 6. Nb3 {[%clk 0:03:00.6]} 6... Be6 {[%clk 0:02:49.7]}
7. c4 {[%clk 0:03:00.5]} 7... a5 {[%clk 0:02:49.8]} 8. Nc3 {[%clk 0:02:50.8]}
8... a4 {[%clk 0:02:49.8]} 9. Nd2 {[%clk 0:02:48.9]} 9... Qa5 {[%clk 0:02:50.1]}
10. Bd3 {[%clk 0:02:37.4]} 10... Nc6 {[%clk 0:02:49.4]} 11. Nf1 {[%clk
0:02:35.3]} 11... Be7 {[%clk 0:02:43.2]} 12. Ne3 {[%clk 0:02:31]} 12... a3
{[%clk 0:02:39.4]} 13. O-O {[%clk 0:02:29.9]} 13... axb2 {[%clk 0:02:34.2]} 14.
Bxb2 {[%clk 0:02:30.2]} 14... Bd8 {[%clk 0:02:28.9]} 15. Kh1 {[%clk 0:02:26.2]}
15... Bb6 {[%clk 0:02:22.1]} 16. Ned5 {[%clk 0:02:19.4]} 16... Bxd5 {[%clk
0:02:13]} 17. cxd5 {[%clk 0:02:07.4]} 17... Nd4 {[%clk 0:02:07.4]} 18. Ne2
{[%clk 0:02:07.6]} 18... O-O {[%clk 0:02:02.3]} 19. Nxd4 {[%clk 0:02:07.2]}
19... Bxd4 {[%clk 0:02:02]} 20. Bxd4 {[%clk 0:02:00.9]} 20... exd4 {[%clk
0:02:02.9]} 21. Qb3 {[%clk 0:02:01.7]} 21... Rfc8 {[%clk 0:01:58.3]} 22. Rac1
{[%clk 0:01:28.7]} 22... g5 {[%clk 0:01:17.8]} 23. Rxc8+ {[%clk 0:00:42.4]}
23... Rxc8 {[%clk 0:01:18.7]} 24. Qxb7 {[%clk 0:00:42.7]} 24... Rc3 {[%clk
0:01:05.2]} 25. Qe7 {[%clk 0:00:37]} 25... Kg7 {[%clk 0:01:01.3]} 26. e5 {[%clk
0:00:35.1]} 26... dxe5 {[%clk 0:01:00.6]} 27. Qxe5 {[%clk 0:00:35.2]} 27... Qxd5
{[%clk 0:01:01.2]} 28. Qe2 {[%clk 0:00:19.6]} 28... Qe6 {[%clk 0:00:53]} 29. Qd2
{[%clk 0:00:18.4]} 29... Qe3 {[%clk 0:00:52]} 30. Qxe3 {[%clk 0:00:09.1]} 30...
dxe3 {[%clk 0:00:52.9]} 31. Rd1 {[%clk 0:00:08.7]} 31... Nd5 {[%clk 0:00:50.4]}
32. Bf1 {[%clk 0:00:02.6]} 32... Nf4 {[%clk 0:00:48.2]} 33. g3 {[%clk
0:00:01.9]} 33... e2 {[%clk 0:00:48.2]} 34. Bxe2 {[%clk 0:00:02.5]} 34... Nxe2
{[%clk 0:00:49]} 35. Kg2 {[%clk 0:00:03.4]} 35... Rc2 {[%clk 0:00:48.7]} 36. Rd4
{[%clk 0:00:02.7]} 36... Nxd4+ {[%clk 0:00:48.5]} 0-1

[Event "Early-Titled-Tuesday-Blitz-March-12-2024"]
[Site "Chess.com"]
[Date "2024.03.12"]
[Round "3"]
[White "Rosh1610"]
[Black "IwkooO"]
[Result "0-1"]
[WhiteElo "2469"]
[BlackElo "2688"]
[TimeControl "180+1"]
[EndTime "8:27:29 PDT"]
[Termination "IwkooO won by resignation"]

1. e4 {[%clk 0:03:00.9]} 1... c5 {[%clk 0:02:59.8]} 2. Nf3 {[%clk 0:02:59]} 2...
Nf6 {[%clk 0:03:00.1]} 3. Nc3 {[%clk 0:02:56.3]} 3... d5 {[%clk 0:03:00.4]} 4.
e5 {[%clk 0:02:54]} 4... Ne4 {[%clk 0:03:00.7]} 5. d4 {[%clk 0:02:52.7]} 5...
Nxc3 {[%clk 0:02:58.3]} 6. bxc3 {[%clk 0:02:53.6]} 6... Nc6 {[%clk 0:02:57.9]}
7. Bg5 {[%clk 0:02:43.9]} 7... Bg4 {[%clk 0:02:57.8]} 8. Rb1 {[%clk 0:02:40.4]}
8... Qc7 {[%clk 0:02:46.9]} 9. Bb5 {[%clk 0:02:37.2]} 9... e6 {[%clk 0:02:43.2]}
10. h3 {[%clk 0:02:36.9]} 10... Bf5 {[%clk 0:02:15.1]} 11. Bd3 {[%clk
0:02:25.1]} 11... Bxd3 {[%clk 0:02:12.3]} 12. cxd3 {[%clk 0:02:26]} 12... h6
{[%clk 0:02:12.7]} 13. Bd2 {[%clk 0:02:25]} 13... Be7 {[%clk 0:02:10.9]} 14. O-O
{[%clk 0:02:24.3]} 14... O-O {[%clk 0:02:10.8]} 15. Qc2 {[%clk 0:02:21.5]} 15...
Rfc8 {[%clk 0:02:09.7]} 16. dxc5 {[%clk 0:02:21]} 16... Bxc5 {[%clk 0:02:10.2]}
17. d4 {[%clk 0:02:21.5]} 17... Bb6 {[%clk 0:02:09.1]} 18. Qd3 {[%clk
0:02:20.2]} 18... Na5 {[%clk 0:02:06.3]} 19. Rfc1 {[%clk 0:02:16.4]} 19... Qc4
{[%clk 0:02:06.1]} 20. Qc2 {[%clk 0:02:10.9]} 20... Rc7 {[%clk 0:02:00.3]} 21.
Rb4 {[%clk 0:02:09.8]} 21... Qc6 {[%clk 0:01:51.2]} 22. Nh2 {[%clk 0:02:01]}
22... Rac8 {[%clk 0:01:51]} 23. Ng4 {[%clk 0:02:01.2]} 23... h5 {[%clk
0:01:45.4]} 24. Ne3 {[%clk 0:01:54.2]} 24... Qe8 {[%clk 0:01:36.1]} 25. Qd1
{[%clk 0:01:53.5]} 25... Nc6 {[%clk 0:01:35.3]} 26. Rbb1 {[%clk 0:01:52.1]}
26... f6 {[%clk 0:01:19.5]} 27. exf6 {[%clk 0:01:52]} 27... gxf6 {[%clk
0:01:20.1]} 28. Qf3 {[%clk 0:01:52.6]} 28... Qg6 {[%clk 0:01:18.2]} 29. g4
{[%clk 0:01:44.4]} 29... hxg4 {[%clk 0:01:18.8]} 30. Qxg4 {[%clk 0:01:43.6]}
30... Rg7 {[%clk 0:01:15.2]} 31. Qxg6 {[%clk 0:01:41.2]} 31... Rxg6+ {[%clk
0:01:16]} 32. Kh1 {[%clk 0:01:41.8]} 32... Kf7 {[%clk 0:01:13.4]} 33. Rg1 {[%clk
0:01:40.9]} 33... Rxg1+ {[%clk 0:01:10.7]} 34. Rxg1 {[%clk 0:01:40.2]} 34... Ne7
{[%clk 0:01:11.5]} 35. Rg4 {[%clk 0:01:34]} 35... Ba5 {[%clk 0:01:07.9]} 36. h4
{[%clk 0:01:28.4]} 36... Bxc3 {[%clk 0:01:05.8]} 37. Bxc3 {[%clk 0:01:28]} 37...
Rxc3 {[%clk 0:01:06.7]} 38. h5 {[%clk 0:01:28.4]} 38... Rc8 {[%clk 0:01:06.3]}
39. h6 {[%clk 0:01:28.8]} 39... Rh8 {[%clk 0:01:05.9]} 40. Rh4 {[%clk 0:01:13]}
40... Kg6 {[%clk 0:01:05.8]} 41. Ng2 {[%clk 0:01:04.5]} 41... Nf5 {[%clk
0:00:59.8]} 42. Nf4+ {[%clk 0:01:04.3]} 42... Kf7 {[%clk 0:01:00.4]} 43. Rh5
{[%clk 0:01:03.5]} 43... Rxh6 {[%clk 0:01:00.4]} 44. Rxh6 {[%clk 0:01:02.8]}
44... Nxh6 {[%clk 0:01:01.3]} 45. Kg2 {[%clk 0:01:03.3]} 45... Nf5 {[%clk
0:01:01.9]} 46. Ne2 {[%clk 0:01:03.9]} 46... b5 {[%clk 0:00:54.9]} 47. Kf3
{[%clk 0:01:03.5]} 47... a5 {[%clk 0:00:54]} 48. Kf4 {[%clk 0:00:59.1]} 48... b4
{[%clk 0:00:50]} 49. Kf3 {[%clk 0:00:59.2]} 49... a4 {[%clk 0:00:49.7]} 50. Kg4
{[%clk 0:00:59.4]} 50... b3 {[%clk 0:00:49.1]} 51. axb3 {[%clk 0:00:59.4]} 51...
axb3 {[%clk 0:00:50]} 52. Kf4 {[%clk 0:00:59.9]} 52... Nxd4 {[%clk 0:00:46.7]}
53. Nxd4 {[%clk 0:01:00.8]} 53... b2 {[%clk 0:00:47.1]} 54. Ne2 {[%clk
0:00:58.8]} 54... b1=Q {[%clk 0:00:47.3]} 55. Ng3 {[%clk 0:00:58.7]} 55... e5+
{[%clk 0:00:46.6]} 0-1

[Event "Early-Titled-Tuesday-Blitz-March-12-2024"]
[Site "Chess.com"]
[Date "2024.03.12"]
[Round "3"]
[White "shimastream"]
[Black "QuintilianoR"]
[Result "1-0"]
[WhiteElo "2959"]
[BlackElo "2733"]
[TimeControl "180+1"]
[EndTime "8:27:33 PDT"]
[Termination "shimastream won by resignation"]

1. Nf3 {[%clk 0:02:59]} 1... Nf6 {[%clk 0:02:59.9]} 2. c4 {[%clk 0:02:55.9]}
2... c5 {[%clk 0:02:58.1]} 3. Nc3 {[%clk 0:02:51.6]} 3... Nc6 {[%clk 0:02:58]}
4. g3 {[%clk 0:02:46.5]} 4... g6 {[%clk 0:02:55.7]} 5. Bg2 {[%clk 0:02:45.6]}
5... Bg7 {[%clk 0:02:56.4]} 6. d4 {[%clk 0:02:45.1]} 6... cxd4 {[%clk
0:02:54.9]} 7. Nxd4 {[%clk 0:02:46]} 7... O-O {[%clk 0:02:54.6]} 8. O-O {[%clk
0:02:44.7]} 8... Qa5 {[%clk 0:02:54.5]} 9. e3 {[%clk 0:02:42.4]} 9... d6 {[%clk
0:02:52.2]} 10. Bd2 {[%clk 0:02:42.5]} 10... Bd7 {[%clk 0:02:48.3]} 11. Rc1
{[%clk 0:02:13.5]} 11... Qd8 {[%clk 0:02:43.8]} 12. Qe2 {[%clk 0:02:08.5]} 12...
a6 {[%clk 0:02:31.8]} 13. h3 {[%clk 0:02:05.9]} 13... Rc8 {[%clk 0:02:29.3]} 14.
b3 {[%clk 0:02:05.3]} 14... Qb6 {[%clk 0:02:16.2]} 15. Nf3 {[%clk 0:01:51.3]}
15... e6 {[%clk 0:02:01]} 16. e4 {[%clk 0:01:29.3]} 16... Rfd8 {[%clk
0:01:53.2]} 17. Rfd1 {[%clk 0:01:28.9]} 17... Be8 {[%clk 0:01:40.4]} 18. Na4
{[%clk 0:01:14.4]} 18... Qc7 {[%clk 0:01:33.3]} 19. Be3 {[%clk 0:01:14.7]} 19...
Nd7 {[%clk 0:01:28]} 20. h4 {[%clk 0:01:08.9]} 20... Rb8 {[%clk 0:01:20.7]} 21.
h5 {[%clk 0:01:05.9]} 21... b5 {[%clk 0:00:41.1]} 22. cxb5 {[%clk 0:01:05.8]}
22... axb5 {[%clk 0:00:42]} 23. Nc3 {[%clk 0:01:06.3]} 23... Qa5 {[%clk
0:00:41.8]} 24. Nxb5 {[%clk 0:00:47.8]} 24... Rxb5 {[%clk 0:00:40.6]} 25. Rxc6
{[%clk 0:00:47.6]} 25... Ne5 {[%clk 0:00:40.3]} 26. Rcxd6 {[%clk 0:00:44.8]}
26... Nxf3+ {[%clk 0:00:29.4]} 27. Bxf3 {[%clk 0:00:44.7]} 27... Rc8 {[%clk
0:00:23.5]} 28. h6 {[%clk 0:00:41.7]} 28... Be5 {[%clk 0:00:21.8]} 29. R6d2
{[%clk 0:00:40.1]} 29... Rbb8 {[%clk 0:00:18.9]} 30. Bd4 {[%clk 0:00:38]} 30...
Bb5 {[%clk 0:00:18.7]} 31. Qe3 {[%clk 0:00:37.8]} 31... Qc7 {[%clk 0:00:14.3]}
32. Qg5 {[%clk 0:00:35.3]} 32... Bxd4 {[%clk 0:00:11.1]} 33. Rxd4 {[%clk
0:00:36.2]} 1-0

[Event "Early-Titled-Tuesday-Blitz-March-12-2024"]
[Site "Chess.com"]
[Date "2024.03.12"]
[Round "3"]
[White "NikitaShnadrygin"]
[Black "Vasily85"]
[Result "1-0"]
[WhiteElo "2685"]
[BlackElo "2469"]
[TimeControl "180+1"]
[EndTime "8:27:34 PDT"]
[Termination "NikitaShnadrygin won on time"]

1. e4 {[%clk 0:03:00.9]} 1... c6 {[%clk 0:02:57.9]} 2. d4 {[%clk 0:03:00.5]}
2... d5 {[%clk 0:02:58.4]} 3. f3 {[%clk 0:03:00.7]} 3... dxe4 {[%clk 0:02:52.1]}
4. fxe4 {[%clk 0:03:01.6]} 4... e5 {[%clk 0:02:52.9]} 5. Nf3 {[%clk 0:03:00.1]}
5... exd4 {[%clk 0:02:39.9]} 6. Bc4 {[%clk 0:02:55.8]} 6... Be6 {[%clk
0:01:25.1]} 7. Bxe6 {[%clk 0:01:44.9]} 7... fxe6 {[%clk 0:01:26]} 8. O-O {[%clk
0:01:31.2]} 8... Bc5 {[%clk 0:01:25.6]} 9. Ng5 {[%clk 0:01:17.7]} 9... Nf6
{[%clk 0:00:58.4]} 10. e5 {[%clk 0:01:08.9]} 10... O-O {[%clk 0:00:41]} 11. Qd3
{[%clk 0:00:38.1]} 11... Qd7 {[%clk 0:00:19.8]} 12. exf6 {[%clk 0:00:26.2]}
12... gxf6 {[%clk 0:00:20.7]} 13. Ne4 {[%clk 0:00:25.9]} 13... Be7 {[%clk
0:00:20.4]} 14. Bh6 {[%clk 0:00:22.7]} 14... Rf7 {[%clk 0:00:19]} 15. Ng5 {[%clk
0:00:21]} 15... fxg5 {[%clk 0:00:04.3]} 16. Rxf7 {[%clk 0:00:19.7]} 16... Kxf7
{[%clk 0:00:05.2]} 17. Qxh7+ {[%clk 0:00:19.5]} 17... Kf6 {[%clk 0:00:05.6]} 18.
Bg7+ {[%clk 0:00:14.3]} 18... Kf7 {[%clk 0:00:05.3]} 19. Bh6+ {[%clk 0:00:11.3]}
19... Kf6 {[%clk 0:00:05.3]} 20. Nd2 {[%clk 0:00:10.3]} 1-0

[Event "Early-Titled-Tuesday-Blitz-March-12-2024"]
[Site "Chess.com"]
[Date "2024.03.12"]
[Round "3"]
[White "FormerProdigy"]
[Black "Witik"]
[Result "1-0"]
[WhiteElo "2981"]
[BlackElo "2756"]
[TimeControl "180+1"]
[EndTime "8:27:35 PDT"]
[Termination "FormerProdigy won on time"]

1. e4 {[%clk 0:03:00.9]} 1... c6 {[%clk 0:02:57.1]} 2. d4 {[%clk 0:03:01.4]}
2... d5 {[%clk 0:02:57.1]} 3. e5 {[%clk 0:03:02.1]} 3... Bf5 {[%clk 0:02:57.2]}
4. Nf3 {[%clk 0:03:01.6]} 4... e6 {[%clk 0:02:57.4]} 5. Be2 {[%clk 0:03:01.9]}
5... Nd7 {[%clk 0:02:53.1]} 6. Nbd2 {[%clk 0:02:57.5]} 6... Ne7 {[%clk 0:02:53]}
7. Nh4 {[%clk 0:02:54.7]} 7... c5 {[%clk 0:02:39.5]} 8. c3 {[%clk 0:02:45.3]}
8... cxd4 {[%clk 0:02:37.9]} 9. cxd4 {[%clk 0:02:46.2]} 9... Bg6 {[%clk
0:02:28]} 10. O-O {[%clk 0:02:41]} 10... Nf5 {[%clk 0:02:21.3]} 11. Nxg6 {[%clk
0:02:41]} 11... hxg6 {[%clk 0:02:22.2]} 12. Nf3 {[%clk 0:02:41.4]} 12... a6
{[%clk 0:01:58.6]} 13. g3 {[%clk 0:02:39.4]} 13... Nb8 {[%clk 0:01:53.3]} 14.
Bd2 {[%clk 0:02:34.2]} 14... Nc6 {[%clk 0:01:53.5]} 15. Bc3 {[%clk 0:02:34.6]}
15... Bb4 {[%clk 0:01:40.4]} 16. h4 {[%clk 0:02:32.1]} 16... Bxc3 {[%clk
0:01:33.4]} 17. bxc3 {[%clk 0:02:33]} 17... Rc8 {[%clk 0:01:24.8]} 18. Kg2
{[%clk 0:02:28.7]} 18... Na5 {[%clk 0:01:21]} 19. Qd3 {[%clk 0:02:17.5]} 19...
Qc7 {[%clk 0:01:14.1]} 20. Rac1 {[%clk 0:02:14.8]} 20... Nc4 {[%clk 0:01:13.2]}
21. Rh1 {[%clk 0:02:05.9]} 21... b5 {[%clk 0:01:10.9]} 22. g4 {[%clk 0:02:03.9]}
22... Ne7 {[%clk 0:01:09.1]} 23. Ng5 {[%clk 0:02:04.4]} 23... Nc6 {[%clk
0:00:57]} 24. Qf3 {[%clk 0:01:53.4]} 24... Qe7 {[%clk 0:00:53.6]} 25. Bd3 {[%clk
0:01:48.2]} 25... Rf8 {[%clk 0:00:42.7]} 26. Qf4 {[%clk 0:01:45.1]} 26... Kd7
{[%clk 0:00:41.3]} 27. h5 {[%clk 0:01:24.1]} 27... f6 {[%clk 0:00:37.4]} 28. Nh7
{[%clk 0:01:20.8]} 28... fxe5 {[%clk 0:00:35.7]} 29. Nxf8+ {[%clk 0:01:21.4]}
29... Rxf8 {[%clk 0:00:36.3]} 30. Qg3 {[%clk 0:01:22.1]} 30... exd4 {[%clk
0:00:13]} 31. hxg6 {[%clk 0:01:21.5]} 31... e5 {[%clk 0:00:11]} 32. Rh5 {[%clk
0:01:11.5]} 32... Kc8 {[%clk 0:00:09.1]} 33. cxd4 {[%clk 0:01:08.9]} 33... Kb7
{[%clk 0:00:04.2]} 34. Bxc4 {[%clk 0:01:04.9]} 34... bxc4 {[%clk 0:00:02.4]} 35.
dxe5 {[%clk 0:01:05.8]} 35... Qc5 {[%clk 0:00:02.3]} 36. Rf5 {[%clk 0:01:03.9]}
36... Re8 {[%clk 0:00:02.5]} 37. Rf7+ {[%clk 0:01:03.4]} 37... Ka8 {[%clk
0:00:02.5]} 38. Rxg7 {[%clk 0:01:02.8]} 38... d4 {[%clk 0:00:02]} 39. Qf3 {[%clk
0:00:55.6]} 39... d3 {[%clk 0:00:02.4]} 40. Rc7 {[%clk 0:00:53.9]} 1-0

[Event "Early-Titled-Tuesday-Blitz-March-12-2024"]
[Site "Chess.com"]
[Date "2024.03.12"]
[Round "3"]
[White "alexrustemov"]
[Black "ASKA538"]
[Result "1-0"]
[WhiteElo "2866"]
[BlackElo "2262"]
[TimeControl "180+1"]
[EndTime "8:27:39 PDT"]
[Termination "alexrustemov won by resignation"]

1. d4 {[%clk 0:03:00.9]} 1... Nf6 {[%clk 0:02:58.6]} 2. c4 {[%clk 0:03:01.4]}
2... g6 {[%clk 0:02:58.2]} 3. Nf3 {[%clk 0:03:01.9]} 3... Bg7 {[%clk 0:02:58.4]}
4. g3 {[%clk 0:03:02.5]} 4... O-O {[%clk 0:02:58.5]} 5. Bg2 {[%clk 0:03:03.1]}
5... d5 {[%clk 0:02:58]} 6. cxd5 {[%clk 0:03:02.9]} 6... Nxd5 {[%clk 0:02:57.7]}
7. O-O {[%clk 0:03:03.4]} 7... c5 {[%clk 0:02:41.4]} 8. e4 {[%clk 0:03:02]} 8...
Nf6 {[%clk 0:02:39.7]} 9. e5 {[%clk 0:03:01.6]} 9... Nd5 {[%clk 0:02:37.2]} 10.
dxc5 {[%clk 0:03:01.4]} 10... Na6 {[%clk 0:02:36]} 11. c6 {[%clk 0:03:01.2]}
11... bxc6 {[%clk 0:02:33.9]} 12. a3 {[%clk 0:02:44.6]} 12... Bf5 {[%clk
0:02:15.7]} 13. Re1 {[%clk 0:02:39.9]} 13... Qb6 {[%clk 0:02:08.8]} 14. Nd4
{[%clk 0:02:23.6]} 14... Bxb1 {[%clk 0:02:02.8]} 15. Rxb1 {[%clk 0:02:23.3]}
15... Nc3 {[%clk 0:02:01.6]} 16. bxc3 {[%clk 0:02:21.2]} 16... Qxb1 {[%clk
0:02:01.2]} 17. Nxc6 {[%clk 0:02:20.2]} 17... Rae8 {[%clk 0:01:43.4]} 18. f4
{[%clk 0:01:47.2]} 18... Qb5 {[%clk 0:01:14.5]} 19. Be3 {[%clk 0:01:38.6]} 19...
Nc5 {[%clk 0:01:08.4]} 20. Qd5 {[%clk 0:01:33.8]} 20... Rc8 {[%clk 0:00:35]} 21.
Qxc5 {[%clk 0:01:23.5]} 21... Qxc5 {[%clk 0:00:35]} 22. Bxc5 {[%clk 0:01:24.4]}
22... Rc7 {[%clk 0:00:35.6]} 23. Nxe7+ {[%clk 0:01:13.7]} 23... Kh8 {[%clk
0:00:34.7]} 24. Bc6 {[%clk 0:01:13.2]} 24... Rfc8 {[%clk 0:00:31.6]} 25. Nxc8
{[%clk 0:01:04.1]} 25... Rxc6 {[%clk 0:00:32]} 26. Bxa7 {[%clk 0:00:47.3]} 26...
Rxc8 {[%clk 0:00:30]} 27. Bd4 {[%clk 0:00:47.7]} 27... Bf8 {[%clk 0:00:30]} 28.
a4 {[%clk 0:00:47]} 28... Rc4 {[%clk 0:00:29.4]} 29. Ra1 {[%clk 0:00:46.8]}
29... Rc6 {[%clk 0:00:27.9]} 30. a5 {[%clk 0:00:46]} 30... Ra6 {[%clk
0:00:28.6]} 31. Bb6 {[%clk 0:00:45.8]} 31... Kg7 {[%clk 0:00:27.3]} 32. c4
{[%clk 0:00:45.3]} 32... f6 {[%clk 0:00:26.3]} 33. c5 {[%clk 0:00:41.9]} 33...
fxe5 {[%clk 0:00:25.8]} 34. fxe5 {[%clk 0:00:42.8]} 34... Kf7 {[%clk 0:00:26]}
35. c6 {[%clk 0:00:43.3]} 35... Ra8 {[%clk 0:00:23.7]} 36. c7 {[%clk 0:00:43]}
36... Ke6 {[%clk 0:00:23.9]} 37. Rd1 {[%clk 0:00:41]} 37... Be7 {[%clk
0:00:19.6]} 38. Rd8 {[%clk 0:00:40.2]} 1-0

[Event "Early-Titled-Tuesday-Blitz-March-12-2024"]
[Site "Chess.com"]
[Date "2024.03.12"]
[Round "3"]
[White "Chessdude1987"]
[Black "pfalcon1949"]
[Result "1-0"]
[WhiteElo "2404"]
[BlackElo "1950"]
[TimeControl "180+1"]
[EndTime "8:27:41 PDT"]
[Termination "Chessdude1987 won by checkmate"]

1. e4 {[%clk 0:03:00.9]} 1... e6 {[%clk 0:02:58.9]} 2. d4 {[%clk 0:03:00.3]}
2... d5 {[%clk 0:02:59.1]} 3. exd5 {[%clk 0:02:59.4]} 3... exd5 {[%clk
0:02:58.9]} 4. Nf3 {[%clk 0:02:59.6]} 4... Nf6 {[%clk 0:02:57.9]} 5. Bd3 {[%clk
0:02:59.6]} 5... c5 {[%clk 0:02:57]} 6. Qe2+ {[%clk 0:02:47.1]} 6... Be7 {[%clk
0:02:42]} 7. dxc5 {[%clk 0:02:46.9]} 7... O-O {[%clk 0:02:40.9]} 8. Be3 {[%clk
0:02:36.9]} 8... Re8 {[%clk 0:02:38]} 9. c3 {[%clk 0:02:15.9]} 9... Bxc5 {[%clk
0:02:22.9]} 10. Nd4 {[%clk 0:02:16]} 10... Bxd4 {[%clk 0:02:17.1]} 11. cxd4
{[%clk 0:02:16]} 11... Nc6 {[%clk 0:02:17.3]} 12. O-O {[%clk 0:02:10.7]} 12...
Ng4 {[%clk 0:02:13.4]} 13. Qf3 {[%clk 0:01:56.1]} 13... Qh4 {[%clk 0:01:55]} 14.
h3 {[%clk 0:01:55.6]} 14... Nxe3 {[%clk 0:01:54.4]} 15. fxe3 {[%clk 0:01:55.5]}
15... Be6 {[%clk 0:01:48.3]} 16. Nc3 {[%clk 0:01:54.8]} 16... Rad8 {[%clk
0:01:46.8]} 17. Rae1 {[%clk 0:01:52.5]} 17... Re7 {[%clk 0:01:37.6]} 18. Ne2
{[%clk 0:01:49.1]} 18... Rde8 {[%clk 0:01:37.4]} 19. Nf4 {[%clk 0:01:45]} 19...
Qg5 {[%clk 0:01:26.5]} 20. g3 {[%clk 0:01:35.3]} 20... Qh6 {[%clk 0:01:14.6]}
21. h4 {[%clk 0:01:31.8]} 21... Nb4 {[%clk 0:00:58.8]} 22. Bb1 {[%clk
0:01:30.8]} 22... Bd7 {[%clk 0:00:46.9]} 23. Kf2 {[%clk 0:01:23.7]} 23... Bc6
{[%clk 0:00:44.9]} 24. Rh1 {[%clk 0:01:09.8]} 24... a5 {[%clk 0:00:43.9]} 25. g4
{[%clk 0:01:06.5]} 25... Qf6 {[%clk 0:00:31.9]} 26. g5 {[%clk 0:01:03.7]} 26...
Qd6 {[%clk 0:00:29.6]} 27. a3 {[%clk 0:00:45.1]} 27... Na6 {[%clk 0:00:29.5]}
28. Nd3 {[%clk 0:00:45.1]} 28... f6 {[%clk 0:00:23]} 29. gxf6 {[%clk 0:00:39.8]}
29... Rf7 {[%clk 0:00:23.1]} 30. Nf4 {[%clk 0:00:30]} 30... Rxf6 {[%clk
0:00:22.4]} 31. Rhg1 {[%clk 0:00:23]} 31... Ref8 {[%clk 0:00:21.7]} 32. Kg3
{[%clk 0:00:15.9]} 32... Nc7 {[%clk 0:00:20.2]} 33. Kh2 {[%clk 0:00:13.1]} 33...
Ne6 {[%clk 0:00:19.7]} 34. Qg3 {[%clk 0:00:11.3]} 34... Nxf4 {[%clk 0:00:19.5]}
35. Qxg7# {[%clk 0:00:11.1]} 1-0